[Event "*** Titled Tuesday Blitz"]
[Site "Chess.com"]
[Date "2019.08.06"]
[Round "1"]
[White "Agent-JL"]
[Black "GMMarcinDziuba"]
[Result "0-1"]
[WhiteElo "2356"]
[BlackElo "2694"]
[TimeControl "180+2"]
[EndTime "13:08:25 PDT"]
[Termination "GMMarcinDziuba won on time"]

1. d4 {[%clk 0:02:44]} 1... Nf6 {[%clk 0:02:58.7]} 2. c4 {[%clk 0:02:40.4]} 2...
g6 {[%clk 0:02:57.7]} 3. Nc3 {[%clk 0:02:40.5]} 3... Bg7 {[%clk 0:02:55.8]} 4.
e4 {[%clk 0:02:40.9]} 4... d6 {[%clk 0:02:54.4]} 5. Nf3 {[%clk 0:02:42.1]} 5...
O-O {[%clk 0:02:53]} 6. Be2 {[%clk 0:02:43.1]} 6... c5 {[%clk 0:02:48.1]} 7. d5
{[%clk 0:02:42.4]} 7... e6 {[%clk 0:02:42.7]} 8. O-O {[%clk 0:02:43.3]} 8...
exd5 {[%clk 0:02:43.7]} 9. cxd5 {[%clk 0:02:45.2]} 9... Re8 {[%clk 0:02:44.5]}
10. Nd2 {[%clk 0:02:33.4]} 10... b6 {[%clk 0:02:45.3]} 11. Re1 {[%clk
0:02:31.3]} 11... Ba6 {[%clk 0:02:46]} 12. a4 {[%clk 0:02:24.3]} 12... Bxe2
{[%clk 0:02:44.4]} 13. Rxe2 {[%clk 0:02:17.7]} 13... Nbd7 {[%clk 0:02:11.2]} 14.
Qc2 {[%clk 0:01:55.7]} 14... a6 {[%clk 0:02:11.1]} 15. f4 {[%clk 0:01:41]} 15...
b5 {[%clk 0:01:44.7]} 16. axb5 {[%clk 0:01:09.8]} 16... axb5 {[%clk 0:01:46.6]}
17. Rxa8 {[%clk 0:01:11.3]} 17... Qxa8 {[%clk 0:01:47.4]} 18. Nxb5 {[%clk
0:01:12.5]} 18... Qa6 {[%clk 0:01:48.4]} 19. Nc3 {[%clk 0:01:09.6]} 19... Nxd5
{[%clk 0:01:42.8]} 20. Nf3 {[%clk 0:00:58]} 20... Nxc3 {[%clk 0:01:36.5]} 21.
bxc3 {[%clk 0:00:59.9]} 21... Bxc3 {[%clk 0:01:34.2]} 22. Kf2 {[%clk 0:00:42.5]}
22... Bg7 {[%clk 0:01:27.2]} 23. Bb2 {[%clk 0:00:32]} 23... Nf6 {[%clk
0:01:23.8]} 24. Bxf6 {[%clk 0:00:26.8]} 24... Bxf6 {[%clk 0:01:24.3]} 25. e5
{[%clk 0:00:28.4]} 25... dxe5 {[%clk 0:01:24.3]} 26. Qxc5 {[%clk 0:00:29.7]}
26... e4 {[%clk 0:01:15.3]} 27. Ne5 {[%clk 0:00:20.9]} 27... Bxe5 {[%clk
0:00:55.7]} 28. fxe5 {[%clk 0:00:21.8]} 28... Qe6 {[%clk 0:00:57.3]} 29. Rxe4
{[%clk 0:00:17.4]} 29... Qf5+ {[%clk 0:00:58.4]} 30. Ke3 {[%clk 0:00:19]} 30...
Rb8 {[%clk 0:00:59.6]} 31. Qc2 {[%clk 0:00:11.9]} 31... Qf1 {[%clk 0:00:41.5]}
32. Rf4 {[%clk 0:00:10.6]} 32... Qe1+ {[%clk 0:00:41.6]} 33. Kf3 {[%clk
0:00:06.5]} 33... Qxe5 {[%clk 0:00:40.9]} 34. h4 {[%clk 0:00:04.8]} 34... Rb2
{[%clk 0:00:39.1]} 35. Qc4 {[%clk 0:00:04.9]} 35... Qe8 {[%clk 0:00:21]} 36. Re4
{[%clk 0:00:04.3]} 36... Qb8 {[%clk 0:00:18.6]} 0-1

[Event "*** Titled Tuesday Blitz"]
[Site "Chess.com"]
[Date "2019.08.06"]
[Round "1"]
[White "novocane"]
[Black "enriquetejedor"]
[Result "0-1"]
[WhiteElo "2185"]
[BlackElo "2585"]
[TimeControl "180+2"]
[EndTime "13:08:25 PDT"]
[Termination "enriquetejedor won on time"]

1. d4 {[%clk 0:03:01.9]} 1... d5 {[%clk 0:02:59.6]} 2. c4 {[%clk 0:03:03.2]}
2... dxc4 {[%clk 0:03:00.9]} 3. e4 {[%clk 0:03:04.4]} 3... e5 {[%clk 0:03:00.5]}
4. Nf3 {[%clk 0:03:05.6]} 4... exd4 {[%clk 0:02:57.8]} 5. Bxc4 {[%clk
0:03:06.7]} 5... Nc6 {[%clk 0:02:53.8]} 6. O-O {[%clk 0:03:03.6]} 6... Nf6
{[%clk 0:02:48.1]} 7. e5 {[%clk 0:02:33.3]} 7... Ne4 {[%clk 0:02:44.4]} 8. Re1
{[%clk 0:02:27.4]} 8... Nc5 {[%clk 0:02:42.3]} 9. b4 {[%clk 0:02:11.4]} 9... Ne6
{[%clk 0:02:35.2]} 10. a3 {[%clk 0:02:04.1]} 10... a6 {[%clk 0:02:33.9]} 11. Bb2
{[%clk 0:02:04.8]} 11... Be7 {[%clk 0:02:33.5]} 12. Nbd2 {[%clk 0:02:04.7]}
12... O-O {[%clk 0:02:33.2]} 13. Ne4 {[%clk 0:02:05.3]} 13... b5 {[%clk
0:02:24.6]} 14. Bd3 {[%clk 0:02:04.1]} 14... Nf4 {[%clk 0:02:23.7]} 15. Bb1
{[%clk 0:01:57.8]} 15... Bg4 {[%clk 0:02:13.2]} 16. Qd2 {[%clk 0:01:40]} 16...
Ne6 {[%clk 0:01:59.9]} 17. Qd3 {[%clk 0:01:25.2]} 17... g6 {[%clk 0:01:56.2]}
18. Ng3 {[%clk 0:00:59.1]} 18... Qd7 {[%clk 0:01:39.5]} 19. h3 {[%clk
0:00:54.4]} 19... Nf4 {[%clk 0:01:24.9]} 20. Qe4 {[%clk 0:00:51]} 20... Bxf3
{[%clk 0:01:12.4]} 21. Qxf3 {[%clk 0:00:43.9]} 21... Nd5 {[%clk 0:00:58]} 22.
Nf5 {[%clk 0:00:19.7]} 22... Bg5 {[%clk 0:00:44.5]} 23. Qg4 {[%clk 0:00:10]}
23... Qd8 {[%clk 0:00:45.9]} 24. e6 {[%clk 0:00:07.3]} 24... fxe6 {[%clk
0:00:28.4]} 25. Rxe6 {[%clk 0:00:07.9]} 25... Qd7 {[%clk 0:00:19.8]} 26. Nh6+
{[%clk 0:00:08.7]} 26... Kh8 {[%clk 0:00:13.9]} 27. Rxc6 {[%clk 0:00:08.2]}
27... Qxc6 {[%clk 0:00:10.5]} 28. Qxg5 {[%clk 0:00:09.2]} 28... Nc3 {[%clk
0:00:08.2]} 29. Qe5+ {[%clk 0:00:07.3]} 29... Qf6 {[%clk 0:00:09.4]} 30. Qe1
{[%clk 0:00:05.9]} 30... Rae8 {[%clk 0:00:09.6]} 31. Qd2 {[%clk 0:00:05.9]}
31... Re2 {[%clk 0:00:08.1]} 0-1

[Event "*** Titled Tuesday Blitz"]
[Site "Chess.com"]
[Date "2019.08.06"]
[Round "1"]
[White "Chigorinetz"]
[Black "Saitama_Hero"]
[Result "1-0"]
[WhiteElo "2642"]
[BlackElo "2293"]
[TimeControl "180+2"]
[EndTime "13:08:29 PDT"]
[Termination "Chigorinetz won by resignation"]

1. e4 {[%clk 0:03:01.9]} 1... e6 {[%clk 0:03:00.3]} 2. d4 {[%clk 0:03:02.6]}
2... d5 {[%clk 0:03:01.9]} 3. e5 {[%clk 0:03:04.1]} 3... c5 {[%clk 0:03:01.2]}
4. c3 {[%clk 0:03:03.9]} 4... Nc6 {[%clk 0:03:02.4]} 5. Nf3 {[%clk 0:03:04.8]}
5... Qb6 {[%clk 0:03:03.7]} 6. a3 {[%clk 0:03:04.5]} 6... Nh6 {[%clk 0:03:03.9]}
7. b4 {[%clk 0:03:04]} 7... cxd4 {[%clk 0:03:03.9]} 8. cxd4 {[%clk 0:03:04.8]}
8... Nf5 {[%clk 0:03:04.1]} 9. Be3 {[%clk 0:03:04.9]} 9... Nxe3 {[%clk
0:03:02.4]} 10. fxe3 {[%clk 0:03:04.9]} 10... Bd7 {[%clk 0:03:04.3]} 11. Bd3
{[%clk 0:03:05.1]} 11... Rc8 {[%clk 0:03:04]} 12. O-O {[%clk 0:03:05.2]} 12...
Be7 {[%clk 0:02:55]} 13. Ra2 {[%clk 0:03:05]} 13... f6 {[%clk 0:02:55]} 14. exf6
{[%clk 0:02:55]} 14... Bxf6 {[%clk 0:02:56.9]} 15. g4 {[%clk 0:02:56.2]} 15...
O-O {[%clk 0:02:50.8]} 16. g5 {[%clk 0:02:56.6]} 16... Be7 {[%clk 0:02:51.3]}
17. Rg2 {[%clk 0:02:45.5]} 17... e5 {[%clk 0:02:34.6]} 18. Bxh7+ {[%clk
0:02:29.6]} 18... Kxh7 {[%clk 0:02:34.6]} 19. g6+ {[%clk 0:02:22.8]} 19... Kg8
{[%clk 0:02:36]} 20. Nfd2 {[%clk 0:02:11.9]} 20... Rxf1+ {[%clk 0:01:25.5]} 21.
Nxf1 {[%clk 0:02:09.4]} 21... Bf6 {[%clk 0:00:51.3]} 22. Nc3 {[%clk 0:01:55.8]}
22... Be6 {[%clk 0:00:50.5]} 23. Na4 {[%clk 0:01:53]} 23... Qd8 {[%clk
0:00:37.2]} 24. Nc5 {[%clk 0:01:53.1]} 24... Qe7 {[%clk 0:00:38.7]} 25. Qh5
{[%clk 0:01:48.4]} 25... Kf8 {[%clk 0:00:38.9]} 26. Rf2 {[%clk 0:01:43.2]} 26...
Bg8 {[%clk 0:00:36.7]} 27. Qh8 {[%clk 0:01:31.4]} 27... exd4 {[%clk 0:00:34.9]}
28. e4 {[%clk 0:01:09.2]} 28... dxe4 {[%clk 0:00:33.2]} 29. Ng3 {[%clk
0:00:55.4]} 29... e3 {[%clk 0:00:33.8]} 30. Rxf6+ {[%clk 0:00:54.6]} 30... Qxf6
{[%clk 0:00:33.6]} 31. Nd7+ {[%clk 0:00:52.7]} 31... Ke7 {[%clk 0:00:34.4]} 32.
Nxf6 {[%clk 0:00:53.8]} 32... Kxf6 {[%clk 0:00:27.5]} 33. Qh4+ {[%clk
0:00:52.7]} 33... Ke5 {[%clk 0:00:26.7]} 34. b5 {[%clk 0:00:30.7]} 34... d3
{[%clk 0:00:10.6]} 35. Qe4+ {[%clk 0:00:29.8]} 35... Kd6 {[%clk 0:00:10.9]} 36.
Qxd3+ {[%clk 0:00:28]} 1-0

[Event "*** Titled Tuesday Blitz"]
[Site "Chess.com"]
[Date "2019.08.06"]
[Round "1"]
[White "Hrant_ChessMood"]
[Black "Rhemmy"]
[Result "0-1"]
[WhiteElo "2947"]
[BlackElo "2511"]
[TimeControl "180+2"]
[EndTime "13:08:30 PDT"]
[Termination "Rhemmy won by checkmate"]

1. d4 {[%clk 0:03:00]} 1... Nf6 {[%clk 0:03:00.7]} 2. c4 {[%clk 0:03:00.9]} 2...
g6 {[%clk 0:03:02]} 3. Nc3 {[%clk 0:03:01.6]} 3... d5 {[%clk 0:03:03.2]} 4. Nf3
{[%clk 0:03:02.1]} 4... Bg7 {[%clk 0:03:04.1]} 5. h4 {[%clk 0:03:03.7]} 5...
dxc4 {[%clk 0:03:03.2]} 6. e4 {[%clk 0:03:04.1]} 6... c5 {[%clk 0:02:59.7]} 7.
d5 {[%clk 0:03:04.8]} 7... b5 {[%clk 0:03:00.7]} 8. h5 {[%clk 0:02:57.4]} 8...
O-O {[%clk 0:02:59.1]} 9. hxg6 {[%clk 0:02:57.4]} 9... fxg6 {[%clk 0:02:58.9]}
10. e5 {[%clk 0:02:58.6]} 10... Ng4 {[%clk 0:02:56.9]} 11. d6 {[%clk 0:03:00]}
11... Bb7 {[%clk 0:02:44.3]} 12. Bg5 {[%clk 0:02:52]} 12... Rxf3 {[%clk
0:02:19.9]} 13. dxe7 {[%clk 0:02:33.2]} 13... Qe8 {[%clk 0:01:47]} 14. gxf3
{[%clk 0:02:17.3]} 14... Nxe5 {[%clk 0:01:47.1]} 15. Be2 {[%clk 0:02:14.7]}
15... Nbc6 {[%clk 0:01:23.3]} 16. Qd5+ {[%clk 0:02:09.7]} 16... Nf7 {[%clk
0:01:24.1]} 17. Nxb5 {[%clk 0:01:52.2]} 17... Na5 {[%clk 0:01:02.1]} 18. Qe6
{[%clk 0:01:40.4]} 18... Qxb5 {[%clk 0:00:59.6]} 19. Rd1 {[%clk 0:01:26.7]}
19... Re8 {[%clk 0:00:16.1]} 20. Rd8 {[%clk 0:01:02.1]} 20... Qc6 {[%clk
0:00:17.2]} 21. O-O {[%clk 0:00:40.7]} 21... h6 {[%clk 0:00:12.7]} 22. Rfd1
{[%clk 0:00:36.1]} 22... Qxe6 {[%clk 0:00:10.3]} 23. Rxe8+ {[%clk 0:00:36.4]}
23... Kh7 {[%clk 0:00:11.9]} 24. Be3 {[%clk 0:00:32.6]} 24... Bc6 {[%clk
0:00:06.9]} 25. Bxc4 {[%clk 0:00:12.5]} 25... Qxc4 {[%clk 0:00:04]} 26. Rc8
{[%clk 0:00:13.9]} 26... Qe6 {[%clk 0:00:04.2]} 27. Bxc5 {[%clk 0:00:12.4]}
27... Bxf3 {[%clk 0:00:02.3]} 28. e8=Q {[%clk 0:00:13.1]} 28... Qg4+ {[%clk
0:00:02.1]} 29. Kf1 {[%clk 0:00:14.8]} 29... Qg2+ {[%clk 0:00:02.3]} 30. Ke1
{[%clk 0:00:16.1]} 30... Qg1+ {[%clk 0:00:04.2]} 31. Kd2 {[%clk 0:00:17.6]}
31... Qxd1+ {[%clk 0:00:06.1]} 32. Ke3 {[%clk 0:00:16.9]} 32... Qe2+ {[%clk
0:00:06.4]} 33. Kf4 {[%clk 0:00:18.3]} 33... g5+ {[%clk 0:00:07.6]} 34. Kg3
{[%clk 0:00:19.2]} 34... Be5+ {[%clk 0:00:07.3]} 35. Kh3 {[%clk 0:00:20.8]}
35... Bg4+ {[%clk 0:00:06.8]} 36. Kg2 {[%clk 0:00:22.4]} 36... Qf3+ {[%clk
0:00:08.1]} 37. Kf1 {[%clk 0:00:24.1]} 37... Qd1+ {[%clk 0:00:09.2]} 38. Kg2
{[%clk 0:00:25.3]} 38... Qd5+ {[%clk 0:00:09.5]} 39. Kg1 {[%clk 0:00:23.8]}
39... Qd1+ {[%clk 0:00:06.5]} 40. Kg2 {[%clk 0:00:25.3]} 40... Bf3+ {[%clk
0:00:06.9]} 41. Kh3 {[%clk 0:00:26.8]} 41... Qh1# {[%clk 0:00:07.9]} 0-1

[Event "*** Titled Tuesday Blitz"]
[Site "Chess.com"]
[Date "2019.08.06"]
[Round "1"]
[White "DiogenesSinopeus"]
[Black "K_A_S_T_O_R"]
[Result "0-1"]
[WhiteElo "2402"]
[BlackElo "2789"]
[TimeControl "180+2"]
[EndTime "13:08:32 PDT"]
[Termination "K_A_S_T_O_R won by resignation"]

1. d4 {[%clk 0:03:01.7]} 1... Nf6 {[%clk 0:03:00.6]} 2. c4 {[%clk 0:02:59.7]}
2... e6 {[%clk 0:03:01.5]} 3. Nc3 {[%clk 0:03:00.5]} 3... Bb4 {[%clk 0:03:02]}
4. e3 {[%clk 0:03:01.8]} 4... O-O {[%clk 0:03:02.5]} 5. Bd3 {[%clk 0:03:02]}
5... d5 {[%clk 0:03:02.4]} 6. a3 {[%clk 0:03:01.9]} 6... Bxc3+ {[%clk
0:03:02.6]} 7. bxc3 {[%clk 0:03:03.8]} 7... c5 {[%clk 0:03:04.3]} 8. cxd5 {[%clk
0:03:04.8]} 8... exd5 {[%clk 0:03:04.3]} 9. Ne2 {[%clk 0:03:05.8]} 9... b6
{[%clk 0:03:03.9]} 10. O-O {[%clk 0:03:06.6]} 10... Ba6 {[%clk 0:03:05.2]} 11.
f3 {[%clk 0:03:07.9]} 11... Re8 {[%clk 0:03:02]} 12. Ng3 {[%clk 0:03:07.4]}
12... cxd4 {[%clk 0:02:59.6]} 13. cxd4 {[%clk 0:03:07.4]} 13... Bxd3 {[%clk
0:03:00.8]} 14. Qxd3 {[%clk 0:03:09.3]} 14... Nc6 {[%clk 0:03:02.5]} 15. Bb2
{[%clk 0:03:04.9]} 15... Na5 {[%clk 0:03:03.4]} 16. Rae1 {[%clk 0:03:05]} 16...
Rc8 {[%clk 0:02:53.2]} 17. e4 {[%clk 0:03:00.4]} 17... Nc4 {[%clk 0:02:49.6]}
18. Bc1 {[%clk 0:02:59.3]} 18... dxe4 {[%clk 0:02:48.7]} 19. fxe4 {[%clk
0:02:59.7]} 19... Ne5 {[%clk 0:02:49.7]} 20. Qd2 {[%clk 0:02:40]} 20... Ng6
{[%clk 0:02:47.7]} 21. d5 {[%clk 0:02:22.3]} 21... Nd7 {[%clk 0:02:46.1]} 22.
Nf5 {[%clk 0:01:42.6]} 22... Nde5 {[%clk 0:02:43.4]} 23. a4 {[%clk 0:01:08.8]}
23... Qd7 {[%clk 0:02:39.6]} 24. Qd1 {[%clk 0:00:59.5]} 24... Nc4 {[%clk
0:02:38.6]} 25. Qd4 {[%clk 0:00:51]} 25... f6 {[%clk 0:02:39.3]} 26. d6 {[%clk
0:00:36.3]} 26... Nge5 {[%clk 0:02:30.5]} 27. Rd1 {[%clk 0:00:33.5]} 27... Kh8
{[%clk 0:02:30.1]} 28. Bf4 {[%clk 0:00:24.6]} 28... Rcd8 {[%clk 0:02:27.8]} 29.
Bxe5 {[%clk 0:00:18.3]} 29... Nxe5 {[%clk 0:02:29.2]} 30. h3 {[%clk 0:00:14.6]}
30... Rc8 {[%clk 0:02:26]} 31. Kh1 {[%clk 0:00:15.4]} 31... Rc4 {[%clk 0:02:25]}
32. Qd5 {[%clk 0:00:14.2]} 32... Rc5 {[%clk 0:02:26.4]} 33. Qd4 {[%clk
0:00:13.9]} 33... Rd8 {[%clk 0:02:24.2]} 34. Rc1 {[%clk 0:00:13.1]} 34... Rdc8
{[%clk 0:02:21.9]} 35. Rxc5 {[%clk 0:00:11.8]} 35... Rxc5 {[%clk 0:02:23.8]} 36.
Rd1 {[%clk 0:00:12.3]} 36... Rc8 {[%clk 0:02:21.9]} 37. Qd5 {[%clk 0:00:10.2]}
37... Rd8 {[%clk 0:02:23.1]} 38. Rd2 {[%clk 0:00:10.4]} 38... h6 {[%clk
0:02:23]} 39. Rc2 {[%clk 0:00:11.2]} 39... Rc8 {[%clk 0:02:17.9]} 40. Rxc8+
{[%clk 0:00:11.8]} 40... Qxc8 {[%clk 0:02:18.8]} 41. Kh2 {[%clk 0:00:06.1]}
41... Qd7 {[%clk 0:02:11.3]} 42. Nd4 {[%clk 0:00:05]} 42... Nf7 {[%clk
0:02:09.9]} 43. Nf5 {[%clk 0:00:03.9]} 43... g6 {[%clk 0:02:10.2]} 44. Ne7
{[%clk 0:00:03.8]} 44... Kg7 {[%clk 0:02:10.4]} 45. Qc6 {[%clk 0:00:03.9]} 45...
Qxd6+ {[%clk 0:02:11.3]} 46. Qxd6 {[%clk 0:00:02.3]} 46... Nxd6 {[%clk
0:02:13.2]} 47. Nc6 {[%clk 0:00:02.5]} 47... a5 {[%clk 0:02:14]} 48. e5 {[%clk
0:00:03.2]} 48... fxe5 {[%clk 0:02:14.9]} 49. Nxe5 {[%clk 0:00:05.1]} 49... Nc8
{[%clk 0:02:10]} 50. Kg3 {[%clk 0:00:04.6]} 50... Kf6 {[%clk 0:02:11.1]} 51. Nc6
{[%clk 0:00:03.6]} 51... Ne7 {[%clk 0:02:10.6]} 52. Nd4 {[%clk 0:00:03.4]} 52...
Ke5 {[%clk 0:02:10.7]} 53. Nb5 {[%clk 0:00:02.3]} 53... Nf5+ {[%clk 0:02:11.6]}
54. Kg4 {[%clk 0:00:02.3]} 54... Nd4 {[%clk 0:02:12.2]} 55. Nc3 {[%clk
0:00:02.4]} 55... Nf5 {[%clk 0:02:07.7]} 56. h4 {[%clk 0:00:03.4]} 56... Ne3+
{[%clk 0:02:08]} 57. Kf3 {[%clk 0:00:03.8]} 57... Nd5 {[%clk 0:02:09.5]} 58. Nb5
{[%clk 0:00:05.3]} 58... h5 {[%clk 0:02:10.2]} 59. g4 {[%clk 0:00:06]} 59... Nf6
{[%clk 0:02:10.7]} 60. g5 {[%clk 0:00:04.1]} 60... Ne4 {[%clk 0:02:09.2]} 61.
Ke3 {[%clk 0:00:04.7]} 61... Nd6 {[%clk 0:02:10.3]} 62. Nc7 {[%clk 0:00:04.8]}
62... Nf5+ {[%clk 0:02:11.3]} 0-1

[Event "*** Titled Tuesday Blitz"]
[Site "Chess.com"]
[Date "2019.08.06"]
[Round "1"]
[White "hamelekh"]
[Black "guillembaches"]
[Result "1/2-1/2"]
[WhiteElo "2649"]
[BlackElo "2320"]
[TimeControl "180+2"]
[EndTime "13:08:32 PDT"]
[Termination "Game drawn by repetition"]

1. e4 {[%clk 0:03:01.8]} 1... c5 {[%clk 0:03:00]} 2. Nc3 {[%clk 0:03:02.5]} 2...
d6 {[%clk 0:02:59]} 3. Bb5+ {[%clk 0:03:02.9]} 3... Bd7 {[%clk 0:02:57.6]} 4.
Bxd7+ {[%clk 0:03:03.7]} 4... Qxd7 {[%clk 0:02:58.6]} 5. d4 {[%clk 0:03:05.6]}
5... cxd4 {[%clk 0:02:56.7]} 6. Qxd4 {[%clk 0:03:06.8]} 6... Nc6 {[%clk
0:02:57.6]} 7. Qd3 {[%clk 0:03:08.3]} 7... g6 {[%clk 0:02:57.6]} 8. Be3 {[%clk
0:03:07.7]} 8... Bg7 {[%clk 0:02:55.2]} 9. Nge2 {[%clk 0:03:09]} 9... Nf6 {[%clk
0:02:54]} 10. f3 {[%clk 0:03:08.3]} 10... Ne5 {[%clk 0:02:47.9]} 11. Qb5 {[%clk
0:03:04.1]} 11... O-O {[%clk 0:02:38.7]} 12. Qxd7 {[%clk 0:03:04.7]} 12... Nfxd7
{[%clk 0:02:39.2]} 13. O-O-O {[%clk 0:03:05]} 13... Nc4 {[%clk 0:02:34.9]} 14.
Bd4 {[%clk 0:03:04.6]} 14... Rac8 {[%clk 0:02:17.3]} 15. Nd5 {[%clk 0:02:53.7]}
15... Rfe8 {[%clk 0:02:13.1]} 16. Bxg7 {[%clk 0:02:52.6]} 16... Kxg7 {[%clk
0:02:13.6]} 17. b3 {[%clk 0:02:49.9]} 17... Ncb6 {[%clk 0:02:08.7]} 18. Nef4
{[%clk 0:02:50.5]} 18... Nxd5 {[%clk 0:02:02.9]} 19. Nxd5 {[%clk 0:02:48.5]}
19... Nf6 {[%clk 0:02:03.1]} 20. Ne3 {[%clk 0:02:48.7]} 20... Rc6 {[%clk
0:01:59.1]} 21. Kb2 {[%clk 0:02:49.3]} 21... Rec8 {[%clk 0:01:59]} 22. c4 {[%clk
0:02:50.2]} 22... a6 {[%clk 0:01:55.4]} 23. a4 {[%clk 0:02:44.9]} 23... e6
{[%clk 0:01:52.2]} 24. Rd4 {[%clk 0:02:43]} 24... Kf8 {[%clk 0:01:52.8]} 25.
Rhd1 {[%clk 0:02:41.4]} 25... Ke7 {[%clk 0:01:53.2]} 26. a5 {[%clk 0:02:38]}
26... h5 {[%clk 0:01:51.6]} 27. h4 {[%clk 0:02:35.7]} 27... Nd7 {[%clk
0:01:48.7]} 28. b4 {[%clk 0:02:35.6]} 28... Ne5 {[%clk 0:01:47.7]} 29. Kb3
{[%clk 0:02:36.5]} 29... f5 {[%clk 0:01:39.3]} 30. f4 {[%clk 0:02:11.9]} 30...
Ng4 {[%clk 0:00:59.4]} 31. Nxg4 {[%clk 0:02:12.8]} 31... hxg4 {[%clk 0:01:01.3]}
32. e5 {[%clk 0:02:11.4]} 32... dxe5 {[%clk 0:01:01.3]} 33. fxe5 {[%clk
0:02:13.3]} 33... R8c7 {[%clk 0:01:02.3]} 34. g3 {[%clk 0:02:11.7]} 34... b6
{[%clk 0:00:58.8]} 35. axb6 {[%clk 0:02:11.8]} 35... Rxb6 {[%clk 0:01:00.7]} 36.
Kc3 {[%clk 0:02:07.7]} 36... a5 {[%clk 0:01:00]} 37. bxa5 {[%clk 0:02:07.3]}
37... Ra6 {[%clk 0:00:59.8]} 38. Ra1 {[%clk 0:01:58.1]} 38... Rc5 {[%clk
0:00:59.9]} 39. Kb4 {[%clk 0:01:59]} 39... Rxe5 {[%clk 0:01:00.1]} 40. c5 {[%clk
0:02:00.5]} 40... Re3 {[%clk 0:00:54.5]} 41. Kb5 {[%clk 0:02:01]} 41... Ra8
{[%clk 0:00:54.4]} 42. a6 {[%clk 0:02:00.2]} 42... Rxg3 {[%clk 0:00:54.9]} 43.
a7 {[%clk 0:01:49.8]} 43... Rb3+ {[%clk 0:00:49.7]} 44. Kc6 {[%clk 0:01:50.6]}
44... g3 {[%clk 0:00:50.5]} 45. Rd7+ {[%clk 0:01:49.9]} 45... Kf6 {[%clk
0:00:51.5]} 46. Rb7 {[%clk 0:01:51.1]} 46... Rc3 {[%clk 0:00:44.8]} 47. Rb8
{[%clk 0:01:51.3]} 47... Rxa7 {[%clk 0:00:45.7]} 48. Rxa7 {[%clk 0:01:53.2]}
48... g2 {[%clk 0:00:46.6]} 49. Ra1 {[%clk 0:01:54.1]} 49... f4 {[%clk
0:00:47.5]} 50. Rf8+ {[%clk 0:01:53.6]} 50... Ke5 {[%clk 0:00:48.5]} 51. Rg1
{[%clk 0:01:50]} 51... f3 {[%clk 0:00:48.4]} 52. Kd7 {[%clk 0:01:49.6]} 52...
Ke4 {[%clk 0:00:46.7]} 53. c6 {[%clk 0:01:50.7]} 53... Ke3 {[%clk 0:00:47.9]}
54. c7 {[%clk 0:01:50.4]} 54... Kf2 {[%clk 0:00:49.2]} 55. Rd1 {[%clk
0:01:44.6]} 55... Kg3 {[%clk 0:00:38.5]} 56. c8=Q {[%clk 0:01:40.6]} 56... Rxc8
{[%clk 0:00:38.8]} 57. Kxc8 {[%clk 0:01:39.5]} 57... f2 {[%clk 0:00:37.2]} 58.
Rd3+ {[%clk 0:01:40]} 58... Kxh4 {[%clk 0:00:35.8]} 59. Rd4+ {[%clk 0:01:33.7]}
59... Kg3 {[%clk 0:00:33]} 60. Rd3+ {[%clk 0:01:33.6]} 60... Kh4 {[%clk
0:00:34]} 61. Rd4+ {[%clk 0:01:34.7]} 61... Kg3 {[%clk 0:00:35.2]} 62. Rd3+
{[%clk 0:01:36.2]} 62... Kh4 {[%clk 0:00:36.3]} 1/2-1/2